Cogmind - Beta 17.1 @@@ ROGUE MODE // 2026.09.05 @ 22:40:58 Player: Tuja Result: Escaped! Performance ------------- Evolutions (9) 4500 Regions Visited (23) 4600 Robots Destroyed (273) 1365 Value Destroyed (13576) 13576 Prototype IDs (25) 500 Alien Tech Used (1) 200 Bonus (34253) 34253 TOTAL SCORE: 58994 Bonus ------- High Alert Combat Kills 1844 Follower Combat Kills 2712 Prayed to X0-1V1 5000 Major X0-1V1 Interference 13200 Entered DSFs 500 Acquired ECA 300 Met Zhirov 300 Met Warlord at Base 500 MAIN.C Attacked Warlord 500 Warlord Defense Kills 1058 Met Warlord at Research 2000 Acquired SGEMP 2000 Delivered SGEMP 2000 Win 3000 Friendly Fire -661 Cogmind --------- Core Integrity 1103/1380 Matter 349/1000 Energy 1991/2000 System Corruption 0% Temperature Cool (-658) Movement Walking (108) Location To Epsilon Eridani Parts ------- > --- POWER (1) -------- (None) > --- PROPULSION (5) --- Myomer-Compact Exoskeleton > --- UTILITY (13) ----- Armored Scrap Engine Advanced Heat Sink Advanced Heat Sink High-capacity Storage Unit Experimental Energy Well Advanced Signal Interpreter Makeshift Utility Shielding Graphene Brace (fused) Advanced Hacking Suite Ghost Barrier X0-1V1's Piety Tracker > --- WEAPON (6) ------- Compact Linear Accelerator Compact Linear Accelerator > --- INVENTORY (20) --- Armored Medium Treads Improved Heavy Treads Heavy Siege Treads Advanced Heat Sink Experimental Energy Well (600) Improved Matter Compressor (300) Advanced Sensor Array Experimental Reaction Control System Centrium Light Armor Plating Terrabomb Perforator Improved Plasma Cutter Phasing Sabre Plasma Lance Peak State ------------ > --- POWER ------------ Quantum-Particle Reactor > --- PROPULSION ------- Medium Treads Myomer-Compact Exoskeleton Compact Wheel > --- UTILITY ---------- Armored Scrap Engine Advanced Heat Sink Advanced Heat Sink Advanced Heat Sink High-capacity Storage Unit Experimental Energy Well Makeshift Utility Shielding Centrium Light Armor Plating Graphene Brace Hacking Suite Ghost Barrier X0-1V1's Piety Tracker > --- WEAPON ----------- Enhanced Hardcell Cannon Compact Linear Accelerator Compact Linear Accelerator Hvy. Ballistic Hardcell Construct/C Hpw. Accelerated Hardcell Construct/C > --- INVENTORY -------- Improved Treads Improved Heavy Treads Enhanced Multireflex Exoskeleton Enhanced Multireflex Exoskeleton Experimental Energy Well Improved Matter Compressor Advanced Signal Interpreter Experimental Reaction Control System Hacking Suite Advanced Hacking Suite Experimental System Shield Perforator Improved Plasma Cutter Phasing Sabre Plasma Lance [Rating: 195] Favorites ----------- Power Constructs Engine Light Ion Engine Power Core Micro Nuclear Core Reactor Constructs Propulsion Constructs Treads Advanced Treads Leg Constructs Wheel Compact Wheel Utility X0-1V1's Piety Tracker Device X0-1V1's Piety Tracker Storage Medium Storage Unit Processor Core Analyzer Hackware Ghost Barrier Protection Makeshift Utility Shielding Weapon Constructs Energy Gun Lightning Gun Energy Cannon Constructs Ballistic Gun Railgun Ballistic Cannon Constructs Launcher Long-range Missile Launcher Special Weapon Improved Plasma Cutter Impact Weapon Heavy Mace Slashing Weapon Phasing Sabre Build | -11 -10 -10 -8 -8 -8 -6 -6 -5 -5 -5 -5 -5 -5 -4 -4 -4 -4 -3 -3 -3 -2 -1 -1 ------- Run | Yrd Mat Sub Mat Sto Rec Fac DSF Fac Was Fac Upp Upp Zhi Pro Fac Upp War Pro Res Tes Res Acc Com Slots Evolved 18 | . . . 4 . . 4 . 2 . . . . . . 2 . . . 2 . 2 2 . Power . | . . . . . . . . . . . . . . . . . . . . . . . . Propulsion 2 | . . . 1 . . 1 . . . . . . . . . . . . . . . . . Utility 12 | . . . 2 . . 2 . 2 . . . . . . 2 . . . 1 . 2 1 . Weapon 4 | . . . 1 . . 1 . . . . . . . . . . . . 1 . . 1 . Parts Attached 149 | 7 4 . 16 2 14 2 15 8 1 4 9 4 1 . 3 . 13 4 8 15 10 3 6 Power 6 | 1 . . 1 1 1 . . . . . . 1 1 . . . . . . . . . . Engine 2 | 1 . . . 1 . . . . . . . . . . . . . . . . . . . Core 3 | . . . 1 . 1 . . . . . . 1 . . . . . . . . . . . Reactor 1 | . . . . . . . . . . . . . 1 . . . . . . . . . . Propulsion 30 | 2 2 . 5 . 4 . 4 . . . . . . . . . 2 1 1 5 2 2 . Treads 17 | 2 2 . 5 . 4 . 1 . . . . . . . . . . . . 1 2 . . Leg 10 | . . . . . . . 3 . . . . . . . . . 1 1 1 4 . . . Wheel 3 | . . . . . . . . . . . . . . . . . 1 . . . . 2 . Hover . | . . . . . . . . . . . . . . . . . . . . . . . . Flight . | . . . . . . . . . . . . . . . . . . . . . . . . Utility 69 | 2 2 . 5 . 5 2 3 7 1 2 7 2 . . 3 . 7 2 4 5 3 1 6 Device 33 | 1 . . 3 . 2 . 2 3 . 1 5 2 . . 1 . 3 2 2 1 2 1 2 Storage 8 | 1 1 . . . . . . . . 1 . . . . . . . . 2 3 . . . Processor 3 | . . . . . . 1 . 1 . . . . . . . . . . . . . . 1 Hackware 7 | . . . . . . . . . . . . . . . 2 . 1 . . 1 . . 3 Protection 18 | . 1 . 2 . 3 1 1 3 1 . 2 . . . . . 3 . . . 1 . . Artifact . | . . . . . . . . . . . . . . . . . . . . . . . . Weapon 44 | 2 . . 5 1 4 . 8 1 . 2 2 1 . . . . 4 1 3 5 5 . . Energy Gun 15 | 1 . . 4 . 3 . . . . . 1 . . . . . 3 . 1 2 . . . Energy Cannon 2 | . . . . . . . 2 . . . . . . . . . . . . . . . . Ballistic Gun 11 | 1 . . 1 1 . . 3 . . . . 1 . . . . . 1 1 1 1 . . Ballistic Cannon 12 | . . . . . . . 3 1 . . 1 . . . . . . . 1 2 4 . . Launcher 1 | . . . . . . . . . . 1 . . . . . . . . . . . . . Special Weapon 1 | . . . . . . . . . . . . . . . . . 1 . . . . . . Impact Weapon 1 | . . . . . 1 . . . . . . . . . . . . . . . . . . Slashing Weapon 1 | . . . . . . . . . . 1 . . . . . . . . . . . . . Piercing Weapon . | . . . . . . . . . . . . . . . . . . . . . . . . Special Melee Weapon . | . . . . . . . . . . . . . . . . . . . . . . . . Unidentified Prototypes 16 | . . . 1 . 1 . . . . . . . 2 . . . 4 . . 5 1 . 2 Corrupted Parts 11 | . . . . . . . 2 . . . 2 1 . . . . . . 1 1 2 2 . System Corruption 45 | . . . . . . . 3 . . . 8 5 . . . . . . 2 5 10 12 . Parts Lost 83 | . 1 . 7 1 7 . 19 7 . 1 . 2 . . 2 . 5 5 10 5 4 . 7 Power 7 | . . . 2 . 1 . 2 . . . . 1 . . . . . . . . . . 1 Propulsion 15 | . . . 1 . 1 . 5 . . . . . . . . . 2 1 3 1 . . 1 Utility 23 | . 1 . 2 . 2 . 3 3 . 1 . 1 . . 2 . 2 1 1 2 1 . 1 Weapon 38 | . . . 2 1 3 . 9 4 . . . . . . . . 1 3 6 2 3 . 4 Highest Loss Streak 17 | . 1 . 3 1 7 . 17 3 . 1 . 2 . . 2 . 5 3 7 2 1 . 6 To Critical Strikes . | . . . . . . . . . . . . . . . . . . . . . . . . Average Backups 10 | 2 7 12 12 12 13 13 10 8 4 7 9 10 10 10 6 6 9 9 9 7 13 15 16 Power . | . 1 1 1 . . . . . . . . . . . . . . . . . . . . Propulsion 1 | . 2 5 5 5 4 4 2 1 . . . . . . . . . 1 . . 2 3 4 Utility 4 | . . 2 1 1 3 4 5 4 2 3 4 5 5 6 2 2 5 6 6 4 6 7 7 Weapon 2 | . 3 4 4 6 5 5 2 2 1 2 3 3 2 2 2 2 2 1 1 1 3 3 3 Tool/Special . | . . . . . . . . . . . . . . . . . . . . . . . . Unused Backups 35 | . . . 3 1 5 . . 6 1 3 2 . . . . . 5 . . . . 1 8 Power . | . . . . . . . . . . . . . . . . . . . . . . . . Propulsion 11 | . . . 3 . . . . 2 . . . . . . . . . . . . . . 6 Utility 12 | . . . . . . . . 3 1 1 2 . . . . . 3 . . . . 1 1 Weapon 11 | . . . . 1 5 . . 1 . 1 . . . . . . 2 . . . . . 1 Tool/Special 1 | . . . . . . . . . . 1 . . . . . . . . . . . . . Average Slot Usage (%) 76 | . 94 100 96 99 94 84 78 78 70 57 57 69 69 70 69 70 72 79 76 78 78 81 78 Engine 1 | . 14 14 1 9 1 . 2 3 . . . . . . . . . . . . . . . Core 1 | . . . 4 . 6 6 3 1 2 . . 3 3 . . . . . . . 1 . . Reactor 2 | . . . . . . . . . 2 5 4 1 1 5 5 5 5 4 4 4 2 4 3 Treads 7 | . 28 28 26 27 24 13 5 . 1 . 3 5 5 . . . 2 . . 2 6 7 7 Leg 2 | . . . . . . . 14 8 1 1 . . . . . 1 1 6 4 7 3 . . Device 19 | . 7 . 19 18 17 13 10 13 15 10 15 33 34 30 23 23 21 24 22 21 20 23 23 Storage 6 | . 14 14 9 9 9 6 6 3 . 2 5 5 5 5 5 5 5 5 5 7 8 8 8 Processor 1 | . . . . . . 5 6 11 9 2 . . . . . . . . . . . . 3 Hackware 3 | . . . . . . . . . . . . . . . 9 10 9 5 4 8 8 8 8 Protection 6 | . 1 14 6 9 5 6 5 9 9 4 5 1 . 3 4 5 8 10 12 3 6 7 4 Energy Gun 7 | . 14 14 20 19 14 5 1 7 11 9 7 5 5 5 5 5 4 8 . 4 2 . . Energy Cannon 2 | . . . . . 1 1 2 . . 1 3 3 5 5 3 4 4 3 6 5 . . . Ballistic Gun 4 | . 14 14 6 6 9 11 9 1 . 3 1 . 5 5 5 5 5 4 6 4 4 1 . Ballistic Cannon 4 | . . . . . . 4 5 12 11 5 5 5 . . 1 . . 2 3 2 11 18 18 Peak Build Rating 195 | 7 9 10 41 42 62 72 86 105 114 123 125 122 116 120 126 118 136 133 161 169 188 195 194 Average Rating 109 | 5 7 9 35 40 46 70 72 96 108 115 117 115 114 115 122 114 118 123 146 149 175 190 184 On Entrance 95 | . 7 9 10 41 40 61 70 84 105 113 119 122 114 116 115 118 114 121 132 132 169 178 194 Avg Prop Armor Cover (%) 4 | . . . . . 3 2 1 . . . . . . . . . 11 4 . 5 8 6 2 Naked Turns . | . . . . . . . . . . . . . . . . . . . . . . . . Heaviest Build 122 | 12 29 29 36 39 53 54 54 62 81 106 106 88 73 76 71 56 66 59 98 122 108 118 115 Greatest Support 173 | 40 40 40 66 64 64 42 70 80 121 126 125 79 79 79 105 105 98 109 149 150 154 134 173 Greatest Overweight (x) 7 | . . . . . . 1 2 2 . 1 1 1 . . . 1 3 . 1 1 1 7 . Average Overweight (x) . | . . . . . . 1 . . . . . . . . . . . . . . . 1 . Largest Inventory Capacity 20 | 8 15 15 15 15 15 15 15 15 5 10 10 10 10 10 10 10 10 10 10 20 20 20 20 Average Capacity 12 | 7 14 15 15 15 15 15 15 11 5 7 10 10 10 10 10 10 10 10 10 11 20 20 20 Most Carried 20 | 4 12 15 15 12 15 15 15 13 5 10 10 10 10 10 10 8 10 10 10 20 20 20 20 Average Carried 11 | 2 7 12 12 11 14 14 12 9 4 7 9 10 9 10 6 6 9 9 9 8 18 18 19 Final Capacity 20 | 8 15 15 15 15 15 15 15 5 5 10 10 10 10 10 10 10 10 10 10 20 20 20 20 Final Carried 20 | 4 12 15 13 12 15 15 13 4 5 9 10 10 10 10 6 8 10 10 7 20 18 20 17 Scrap Engine Consumption 352 | . . . . . 13 . 39 26 5 40 5 16 4 2 18 4 45 11 20 29 52 10 13 Constructs Created 20 | . . . . . 2 1 3 5 . . . . . . . . . 4 2 . 1 2 . Constructs Modified 195 | . . . . . 2 3 3 15 9 33 20 6 . 3 3 5 6 16 10 14 19 22 6 Class Distribution -------------------- 25% | Construct 19% | Hacker-Construct 11% | Hacker-Tank 8% | Mutant 7% | Scavenger-Tank 6% | Scavenger-Executioner 5% | Scavenger-Construct 5% | Tank 3% | Commander-Tank Dominant Class ---------------- Mutant | -10/Materials Mutant | -10/Subcaves Tank | -8/Materials Tank | -8/Storage Commander-Tank | -8/Recycling Commander-Tank | -6/Factory Scavenger-Tank | -6/DSF Construct | -5/Factory Construct | -5/Waste Construct | -5/Factory Construct | -5/Upper Caves Scavenger-Construct | -5/Upper Caves Scavenger-Construct | -5/Zhirov Construct | -4/Proximity Caves Hacker-Construct | -4/Factory Hacker-Construct | -4/Upper Caves Hacker-Construct | -4/Warlord Hacker-Tank | -3/Proximity Caves Hacker-Construct | -3/Research Hacker-Tank | -3/Testing Scavenger-Tank | -2/Research Scavenger-Executioner | -1/Access Scavenger-Executioner | -1/Command Resources | -11 -10 -10 -8 -8 -8 -6 -6 -5 -5 -5 -5 -5 -5 -4 -4 -4 -4 -3 -3 -3 -2 -1 -1 ----------- Run | Yrd Mat Sub Mat Sto Rec Fac DSF Fac Was Fac Upp Upp Zhi Pro Fac Upp War Pro Res Tes Res Acc Com Matter Collected 10985 | 222 88 33 208 24 758 . 470 623 388 1039 561 428 . 202 155 40 725 149 413 1349 1820 623 667 Remotely . | . . . . . . . . . . . . . . . . . . . . . . . . Salvage Created 12513 | 39 240 11 953 84 720 . 311 811 714 1257 289 707 . 675 547 120 394 292 817 1195 1299 628 410 Parts 507 | 6 20 3 43 3 39 . 26 41 1 55 10 28 . 18 21 7 9 12 35 65 28 18 19 Haulers Intercepted 1 | . 1 . . . . . . . . . . . . . . . . . . . . . . Recyclers Shooed 15 | . . . 2 . 1 . . 4 . 2 . . . . 1 . . . . 2 1 . 2 Parts Field Recycled . | . . . . . . . . . . . . . . . . . . . . . . . . Retrieved Matter . | . . . . . . . . . . . . . . . . . . . . . . . . Parts Self-Destructed 71 | . . 18 . . . . . . . . 2 26 . 12 . 6 . 7 . . . . . Prevented 20 | . . . . . . . . . . . 6 10 . 4 . . . . . . . . . Parts Restored . | . . . . . . . . . . . . . . . . . . . . . . . . Kills | -11 -10 -10 -8 -8 -8 -6 -6 -5 -5 -5 -5 -5 -5 -4 -4 -4 -4 -3 -3 -3 -2 -1 -1 ------- Run | Yrd Mat Sub Mat Sto Rec Fac DSF Fac Was Fac Upp Upp Zhi Pro Fac Upp War Pro Res Tes Res Acc Com Combat Hostiles Destroyed 231 | . 6 1 20 1 14 . 9 15 3 27 10 14 . 14 10 2 8 6 20 14 23 6 8 Guns 103 | . 6 1 19 1 14 . 6 9 1 13 1 2 . 6 4 . 6 3 1 3 7 . . Cannons 97 | . . . . . . . 2 6 1 7 2 9 . 6 6 2 . 2 18 8 14 6 8 AOE 17 | . . . . . . . . . . 7 5 1 . . . . 2 1 1 . . . . Classes Destroyed 28 | 2 5 . 2 . 3 . 2 1 1 3 1 2 . 1 . . 2 . . . 2 . 1 Worker 10 | 1 . . . . . . . 2 . 5 . . . . . . . . . . . . 2 Builder 4 | . 1 . 1 . . . . . . 1 . . . . . . . . 1 . . . . Tunneler 3 | 1 . . . . . . . . . 1 . . . . . . . . 1 . . . . Hauler 1 | . 1 . . . . . . . . . . . . . . . . . . . . . . Recycler 6 | . . . . . . . . 1 . 1 . . . . . . . . . 1 1 2 . Minesweeper 2 | . . . . . . . . . . . . 1 . . . . . 1 . . . . . Mechanic 2 | . . . . . . . . . . 2 . . . . . . . . . . . . . Operator 5 | . . . 2 . . . . . . 1 . . . . . . . . . 1 1 . . Drone 2 | . . . . . . . . . . . . . . 2 . . . . . . . . . Watcher 8 | . 1 . 1 1 . . . . . 2 . . . . . . . . 1 . 2 . . Swarmer 57 | . 3 1 3 . . . 6 3 . 11 5 . . 4 4 . . 3 10 . 3 1 . Saboteur 2 | . . . . . . . . . . . . . . . . . 2 . . . . . . Grunt 77 | . 3 . 11 . 5 . . 5 . 8 4 7 . 6 2 . 3 . 5 7 7 3 1 Brawler 4 | . . . . . . . . . . 1 . 2 . . . . . . . . 1 . . Duelist 6 | . . . . . . . . . . 3 . 1 . . . . . . . . 1 . 1 Protector 1 | . . . . . . . . . . . . 1 . . . . . . . . . . . Sentry 25 | . . . 6 1 4 . . 3 . 1 . 1 . 1 2 . . 1 . 3 . 1 1 Demolisher 1 | . . . . . . . . . . . . . . . . . . . . . 1 . . Specialist 1 | . . . . . . . 1 . . . . . . . . . . . . . . . . Hunter 18 | . . . . . 1 . 1 4 . . . 2 . . 2 . . 2 2 . 4 . . Programmer 16 | . . . . . 2 . . . . 2 . . . . . 2 . . 3 2 2 1 2 Heavy 2 | . . . . . . . 1 . . 1 . . . . . . . . . . . . . Behemoth 4 | . . . . . . . . . . . 1 . . 1 . . 2 . . . . . . Compactor 3 | . . . . . . . . . 3 . . . . . . . . . . . . . . Striker 6 | . . . . . . . . . . . . . . . . . 1 . . 2 3 . . Executioner 1 | . . . . . . . . . . . . . . . . . . . . . 1 . . Subdweller 2 | . . . . . 2 . . . . . . . . . . . . . . . . . . Surgeon 1 | . . . . . . . . . . 1 . . . . . . . . . . . . . Guerrilla 1 | . . . . . . . . . . . . . . . . . . . . . . . 1 Wizard 1 | . . . . . . . . . . . . . . . . . . . . . . . 1 Fireman 1 | . . . . . . . . . . . . . . . . . . . . . . . 1 Best Kill Streak 14 | 1 4 1 8 1 4 . 6 3 2 14 5 7 . 6 4 2 7 3 10 4 4 2 3 Combat Bots Only 8 | . 3 1 6 1 4 . 6 3 2 7 5 7 . 6 4 2 7 3 8 3 3 2 3 Max Kills in Single Turn 5 | 1 1 1 2 1 2 . 1 2 1 5 3 2 . 1 2 1 2 1 3 1 2 1 1 Gunslinging 1 | . . . 1 . . . . . . . . . . . . . . . . . . . . Exploded 4 | . . . . . . . . . . 4 3 1 . . . . 2 1 1 . . . . Melee . | . . . . . . . . . . . . . . . . . . . . . . . . Uniques/NPCs Destroyed . | . . . . . . . . . . . . . . . . . . . . . . . . Combat | -11 -10 -10 -8 -8 -8 -6 -6 -5 -5 -5 -5 -5 -5 -4 -4 -4 -4 -3 -3 -3 -2 -1 -1 -------- Run | Yrd Mat Sub Mat Sto Rec Fac DSF Fac Was Fac Upp Upp Zhi Pro Fac Upp War Pro Res Tes Res Acc Com Hostile Shots Fired 2047 | . 47 1 129 2 68 . 300 149 . 146 52 129 . 99 94 14 113 75 207 114 123 62 123 Missed 624 | . 19 . 30 2 13 . 94 35 . 55 17 35 . 40 38 9 31 20 62 25 38 22 39 Hits 1423 | . 28 1 99 . 55 . 206 114 . 91 35 94 . 59 56 5 82 55 145 89 85 40 84 Melee 12 | . . . 3 . . . . . . . . . . . . . . . . . 9 . . Projectile 1411 | . 28 1 96 . 55 . 206 114 . 91 35 94 . 59 56 5 82 55 145 89 76 40 84 AOE 7 | . . . . . . . . 1 . . . . . . . . . . . . 6 . . Critical Strikes 68 | . 1 . 3 . 4 . 2 4 . 7 . 6 . 2 1 . 5 1 8 7 7 2 8 Actively Blocked 48 | . . . . . . . . 1 . . . 6 . 2 1 . 5 1 8 7 7 2 8 Damage Taken 26279 | . 373 8 1463 52 799 . 3023 2057 1 1090 533 1372 . 1114 686 100 1972 1046 2841 1527 2913 1496 1813 Core 2579 | . 82 . 200 . 44 . 315 204 . 13 14 76 . 97 36 . 195 125 210 181 510 111 166 Absorbed by Shields 2196 | . . . . . 22 . 98 51 . . 194 639 . 129 182 . . . 205 676 . . . Reduced by Siege Mode 4 | . . . . . . . . . . . . . . . . . . . . 4 . . . Redirected to Shielding 549 | . . . . . . . 81 120 . . 6 . . . 13 . 46 34 118 12 42 27 50 Ignored by Resistances 640 | . . . . . 8 . . . . 623 . 9 . . . . . . . . . . . Regen/Repaired (Parts) 7340 | . . . . . 5 . 210 718 187 634 240 664 . 246 505 84 699 437 410 584 783 687 247 Core Remaining (%) 76 | 100 . 100 . . 91 . 55 . . . . . . 57 . . . 61 . 63 80 . 79 Volleys Fired 619 | 2 34 1 77 4 27 . 35 44 13 67 16 22 . 27 20 8 15 18 45 42 56 26 20 Largest 5 | 2 2 2 3 3 3 . 4 4 4 4 4 3 . 3 3 2 4 4 5 5 5 5 5 Hottest 402 | 70 70 70 153 173 130 . 163 250 236 239 324 324 . 223 223 177 299 297 328 343 324 402 365 Shots Fired 1855 | 4 68 2 217 12 79 . 87 132 52 151 37 58 1 78 56 16 42 66 165 126 239 88 79 Gun 984 | 4 68 2 217 12 79 . 55 47 26 78 14 19 1 53 36 8 33 37 21 76 96 2 . Cannon 855 | . . . . . . . 32 85 26 67 20 36 . 25 20 8 9 27 142 50 143 86 79 Launcher 16 | . . . . . . . . . . 6 3 3 . . . . . 2 2 . . . . Special . | . . . . . . . . . . . . . . . . . . . . . . . . Kinetic 1019 | 2 34 1 53 2 33 . 63 118 26 86 13 23 1 26 18 16 7 20 82 53 185 78 79 Thermal 493 | 2 34 1 164 2 . . 13 14 26 41 2 1 . 25 20 . 7 33 74 32 . 2 . Explosive 16 | . . . . . . . . . . 6 3 3 . . . . . 2 2 . . . . Electromagnetic 288 | . . . . 8 46 . 11 . . 18 19 31 . 27 18 . . . 7 41 54 8 . Entropic 39 | . . . . . . . . . . . . . . . . . 28 11 . . . . . Robot Hit Streak 29 | 3 10 1 13 2 13 . 15 15 20 18 12 29 . 14 14 8 7 8 6 21 11 14 12 Robot Miss Streak 7 | . 5 . 4 2 3 . 5 7 2 7 2 1 1 4 4 2 2 3 4 4 6 2 3 Penetration Max 1 | . . . . . . . . . . 1 . . . 1 . . . . 1 . 1 . . Secondary Targets 14 | . 3 . 6 . 3 . 1 . . . . . . . . . . . . 1 . . . Max Gunslinging Chain 1 | . 1 . 1 . 1 . 1 . . . . . . . . . . . . 1 . . . Shots Hit Robots 1161 | 3 36 1 152 5 52 . 59 77 34 97 32 37 . 56 42 14 33 43 82 90 129 49 38 Core Hits 629 | 2 18 1 61 3 25 . 22 40 16 89 20 40 . 32 31 2 29 19 35 59 53 14 18 Critical Kills 6 | . . . . . . . . 2 . . . . . 1 . . . . 1 2 . . . Critical Parts Destroyed 11 | . . . . . . . . 1 . . . . . . . . 2 1 1 4 1 . 1 Critical Strikes 54 | . 1 . 4 . 2 . 1 5 1 1 1 3 . 2 1 . 3 1 9 8 6 1 4 Burn 12 | . 1 . 4 . . . . . 1 . . . . 1 1 . 1 . 3 . . . . Destroy 16 | . . . . . . . . 3 . . . . . 1 . . . 1 2 7 1 . 1 Blast 20 | . . . . . . . 1 2 . 1 1 3 . . . . . . 4 . 4 1 3 Corrupt 4 | . . . . . 2 . . . . . . . . . . . . . . 1 1 . . Detonate 2 | . . . . . . . . . . . . . . . . . 2 . . . . . . Melee Attacks 9 | . . . . . 2 2 . . . 3 . . . . . . . . . 2 . . . Impact 4 | . . . . . 2 2 . . . . . . . . . . . . . . . . . Slashing 5 | . . . . . . . . . . 3 . . . . . . . . . 2 . . . Piercing . | . . . . . . . . . . . . . . . . . . . . . . . . Sneak Attacks . | . . . . . . . . . . . . . . . . . . . . . . . . Combat Hostiles . | . . . . . . . . . . . . . . . . . . . . . . . . Follow-up Attacks . | . . . . . . . . . . . . . . . . . . . . . . . . Damage Inflicted 38769 | 35 405 13 2054 123 702 . 1187 1821 1391 4934 1575 2190 . 1781 1366 631 2302 1234 3512 2307 4961 2154 2091 Guns 13710 | 31 405 13 1890 46 702 . 568 561 563 1399 285 389 . 889 693 225 1402 710 243 1315 1340 41 . Cannons 20271 | . . . 87 . . . 619 1254 554 1325 766 1186 . 892 673 406 532 367 3027 992 3446 2113 2032 Explosions 4577 | . . . 77 77 . . . . 274 2142 524 615 . . . . 368 157 232 . 111 . . Melee 68 | . . . . . . . . . . 68 . . . . . . . . . . . . . Ramming 143 | 4 . . . . . . . 6 . . . . . . . . . . 10 . 64 . 59 Kinetic 18960 | 6 156 . 345 10 214 . 849 1611 554 1645 381 567 . 402 336 631 215 261 1550 1037 4232 1926 2032 Thermal 8371 | 25 249 13 1632 18 . . 148 204 563 715 76 52 . 892 673 . 470 441 1642 406 111 41 . Explosive 3849 | . . . . 77 . . . . 274 1970 524 615 . . . . . 157 232 . . . . Electromagnetic 5386 | . . . 77 18 488 . 190 . . 536 594 956 . 487 357 . . . 78 864 554 187 . Impact . | . . . . . . . . . . . . . . . . . . . . . . . . Slashing 68 | . . . . . . . . . . 68 . . . . . . . . . . . . . Piercing . | . . . . . . . . . . . . . . . . . . . . . . . . Entropic 1992 | . . . . . . . . . . . . . . . . . 1617 375 . . . . . Highest Corruption 20 | . . . 1 1 4 . 12 . . . 6 10 10 10 . . 4 2 10 19 20 16 16 Average Corruption 8 | . . . 1 1 2 . 10 . . . 4 8 10 10 . . 2 2 7 14 14 6 10 Corruption Purged . | . . . . . . . . . . . . . . . . . . . . . . . . Corruption Blocked . | . . . . . . . . . . . . . . . . . . . . . . . . Effects 236 | . . . 6 1 10 . 9 . . . 10 43 10 24 . . 3 10 4 43 49 6 8 Message Errors 58 | . . . 3 . 1 . 5 . . . 6 9 1 3 . . 1 3 1 13 9 1 2 Matter Fused 39 | . . . 1 . 2 . . . . . 2 8 2 3 . . . 3 2 8 7 . 1 Heat Flow Errors 31 | . . . . . 3 . 1 . . . 1 8 2 2 . . 1 1 . 1 9 1 1 Energy Discharges 23 | . . . . . . . . . . . . 5 . 3 . . . . . 10 3 2 . Parts Rejected 4 | . . . 1 . . . . . . . . . . . . . . . 1 . 1 1 . Parts Fused 1 | . . . . . . . . . . . . . . . . . . . . 1 . . . Data Loss (minor) 31 | . . . 1 1 1 . 1 . . . 1 6 2 5 . . . 2 . 1 7 1 2 Data Loss (major) 11 | . . . . . . . . . . . . 1 2 4 . . . . . . 4 . . Misfires 15 | . . . . . 2 . 2 . . . . 2 1 . . . 1 . . 1 5 . 1 Alerts 8 | . . . . . . . . . . . . 2 . 1 . . . . . 2 2 . 1 Misdirections 1 | . . . . . . . . . . . . . . . . . . . . 1 . . . Weapon Failures 14 | . . . . . 1 . . . . . . 2 . 3 . . . 1 . 5 2 . . Overload Shots 2 | . . . . . . . . . . 2 . . . . . . . . . . . . . Overflow Damage 1055 | . . . . 23 . . 27 . 174 119 61 27 . 29 . 41 11 16 201 . 114 75 137 Projectiles 656 | . . . . . . . 27 . . 26 . . . 29 . 41 . 16 191 . 114 75 137 Explosions 399 | . . . . 23 . . . . 174 93 61 27 . . . . 11 . 10 . . . . Melee . | . . . . . . . . . . . . . . . . . . . . . . . . Knockbacks 123 | . . . 1 . . . 5 8 . 14 1 3 . . . 4 . 2 24 11 28 8 14 Impact 1 | . . . . . . . . . . . . . . . . . . . . . . . 1 Kinetic 110 | . . . 1 . . . 3 8 . 13 1 3 . . . 4 . 2 21 8 28 7 11 Secondary 12 | . . . . . . . 2 . . 1 . . . . . . . . 3 3 . 1 2 Self-Inflicted Damage 78 | . . . . 53 . . . . 1 6 . . . . . . 18 . . . . . . Shots 6 | . . . . 1 . . . . 1 3 . . . . . . 1 . . . . . . Rammed 4 | . . . . . . . . . . . . . . . . . . . . . . . 4 Targets Rammed 11 | 1 . . . . . . . 1 . . . . . . . . . . 2 . 3 . 4 Kicked 6 | . . . . . . . . 1 . . . . . . . . . . 2 . 3 . . Crushed 1 | 1 . . . . . . . . . . . . . . . . . . . . . . . Highest Temperature 517 | 40 185 . 467 120 227 . 201 434 250 517 471 381 121 182 256 81 195 199 200 364 494 292 378 Average Temperature 127 | 20 75 . 96 43 67 . 53 156 83 192 166 135 83 80 90 32 99 109 113 111 98 123 88 Received Heat Transfer 3330 | . 126 . 585 . 142 . 174 297 . 138 97 337 . 157 54 . 363 27 296 197 138 126 76 Effects 43 | . . . . . 2 . . 4 . 20 9 . . . 1 . . . . 1 5 1 . Shutdowns 13 | . . . . . . . . 2 . 8 1 . . . . . . . . . 2 . . Energy Bleed 11 | . . . . . . . . 1 . 5 1 . . . 1 . . . . 1 1 1 . Interference 8 | . . . . . 2 . . . . 3 3 . . . . . . . . . . . . Matter Decay 2 | . . . . . . . . . . . 1 . . . . . . . . . 1 . . Short Circuit 3 | . . . . . . . . . . 1 1 . . . . . . . . . 1 . . Damage (minor) 3 | . . . . . . . . 1 . . 2 . . . . . . . . . . . . Damage (major) 3 | . . . . . . . . . . 3 . . . . . . . . . . . . . Siege Activations 1 | . . . . . . . . . . . . . . . . . . . . 1 . . . Total Turns 25 | . . . . . . . . . . . . . . . . . . . . 25 . . . Longest Duration 25 | . . . . . . . . . . . . . . . . . . . . 25 . . . Martial Activations . | . . . . . . . . . . . . . . . . . . . . . . . . Shielding Activations . | . . . . . . . . . . . . . . . . . . . . . . . . Robots Disrupted 2 | . . . . . . . . . . . . . . . . . . . . 2 . . . Combat Hostiles 1 | . . . . . . . . . . . . . . . . . . . . 1 . . . Robots Corrupted 12 | . . . . . . . 1 . . . 2 2 . 2 . . . . . 3 2 . . Combat Hostiles 12 | . . . . . . . 1 . . . 2 2 . 2 . . . . . 3 2 . . Parts Fried 18 | . . . . . 3 . 1 . . 2 1 2 . 1 2 . . . . 4 . 2 . Impact Corruptions 3 | . . . . . . . 2 . . . . . . . . . . . . . 1 . . Robots Melted 2 | . . . 1 . . . . . 1 . . . . . . . . . . . . . . Combat Hostiles 2 | . . . 1 . . . . . 1 . . . . . . . . . . . . . . Parts Melted 25 | . 4 . 7 . . . . . 4 4 . . . 2 2 . . . 2 . . . . Heat Transferred 16116 | 74 814 37 4285 37 . . 740 37 2081 1810 111 74 . 1406 1073 . 624 744 1638 444 50 37 . Parts Sabotaged . | . . . . . . . . . . . . . . . . . . . . . . . . Parts Stolen . | . . . . . . . . . . . . . . . . . . . . . . . . Parts Stripped . | . . . . . . . . . . . . . . . . . . . . . . . . Power Chain Reactions 1 | . . . . . . . . . . . . . . . . . . . . . 1 . . Alert | -11 -10 -10 -8 -8 -8 -6 -6 -5 -5 -5 -5 -5 -5 -4 -4 -4 -4 -3 -3 -3 -2 -1 -1 ------- Run | Yrd Mat Sub Mat Sto Rec Fac DSF Fac Was Fac Upp Upp Zhi Pro Fac Upp War Pro Res Tes Res Acc Com Maximum Alert Level 4 | . . . 2 1 1 1 1 2 1 4 . . . . 2 . . . 2 2 3 4 4 Low Security (%) 37 | 100 100 . 69 33 95 . 76 1 93 20 . . . . 34 . . . 52 1 . . . Level 1 21 | . . . 6 66 4 100 23 66 6 6 . . . . 36 . . . 26 63 22 11 . Level 2 23 | . . . 23 . . . . 32 . 24 . . . . 29 . . . 21 34 75 18 16 Level 3 11 | . . . . . . . . . . 26 . . . . . . . . . . 2 56 60 Level 4 5 | . . . . . . . . . . 21 . . . . . . . . . . . 13 22 Level 5 . | . . . . . . . . . . . . . . . . . . . . . . . . High Security . | . . . . . . . . . . . . . . . . . . . . . . . . Max Security . | . . . . . . . . . . . . . . . . . . . . . . . . Sterilizations 1 | . . . . . . . 1 . . . . . . . . . . . . . . . . Peak Influence 1365 | 5 65 . 493 225 365 297 326 613 208 1365 . . . . 438 . . . 462 544 720 1210 1186 Initial 758 | . 3 . 10 197 79 297 167 170 208 1 . . . . 71 . . . . 234 290 405 758 Average 373 | . 17 . 156 204 40 269 133 366 102 688 . . . . 298 . . . 199 339 522 769 876 Influence Increases 11407 | 10 171 20 788 78 633 152 416 863 14 2177 245 481 . 306 471 42 160 145 695 761 904 1190 685 Destroy 0b10 Robot/C 5720 | . 120 20 400 20 280 . 240 360 . 900 200 360 . 260 200 40 160 120 400 320 460 560 300 Destroy 0b10 Robot/NC 260 | 10 15 . 20 5 . . 5 15 . 90 . 10 . 10 . . . 5 15 10 20 10 20 Destroy Leader 896 | . 24 . 112 12 . . 40 60 . 178 30 50 . 30 40 . . 20 42 30 64 90 74 Allied During Kill 1007 | . . . . . 17 . 6 26 . 531 . 31 . 6 . 2 . . . 19 . 218 151 Successful Hack 114 | . 12 . 11 12 38 . . 11 . . . . . . . . . . . 16 . . 14 Disable Machine 435 | . . . 45 15 15 . 15 60 . 105 . . . . 15 . . . 15 60 75 15 . Anti-Garrison Action 1150 | . . . 200 . . . . 200 . 200 . . . . 200 . . . . 200 150 . . Destroy Structure 793 | . . . . 14 1 2 5 56 14 128 . . . . 16 . . . 88 76 75 222 96 Advance Influence 150 | . . . . . . 150 . . . . . . . . . . . . . . . . . Partial Spotted 15 | . . . . . . . . . . . . . . . . . . . . 15 . . . Lose Combat Pursuer 585 | . . . . . . . 105 75 . 45 15 30 . . . . . . 135 15 60 75 30 Miscellaneous 282 | . . . . . 282 . . . . . . . . . . . . . . . . . . Influence Decreases 10328 | 5 176 . 339 342 485 266 329 592 609 822 973 604 506 192 233 394 74 231 279 660 745 681 791 Entered New Map 3730 | . 2 . 10 272 126 206 72 156 389 1 503 120 506 . 43 131 . 86 . 182 227 271 427 Time Decay 5085 | 5 164 . 269 60 239 60 . 286 160 475 470 464 . 192 170 263 24 125 179 398 478 350 254 Lost Part 787 | . 10 . 60 10 70 . 187 70 . 10 . 20 . . 20 . 50 20 100 50 40 . 70 Lost Ally 726 | . . . . . 50 . 70 80 60 336 . . . . . . . . . 30 . 60 40 Squads Dispatched 42 | . . . 4 . . . 2 3 . 12 . 1 . . 2 . . . 3 3 3 6 3 Investigation 8 | . . . 1 . . . . 2 . 2 . . . . 1 . . . . 1 . 1 . Extermination 8 | . . . . . . . . . . 2 . . . . . . . . 1 1 . 2 2 Reinforcement 17 | . . . 2 . . . 2 . . 5 . . . . . . . . 2 1 3 2 . Assault 6 | . . . . . . . . 1 . 2 . 1 . . . . . . . . . 1 1 Garrison 3 | . . . 1 . . . . . . 1 . . . . 1 . . . . . . . . Intercept . | . . . . . . . . . . . . . . . . . . . . . . . . Searches Triggered . | . . . . . . . . . . . . . . . . . . . . . . . . Construction Impeded 3 | . . . . . . . . . . 1 . . . . . . . . 1 . 1 . . Haulers Reinforced 5 | . . . . . . . . . . 3 . . . . . . . . 1 . 1 . . Active Scanning Responses . | . . . . . . . . . . . . . . . . . . . . . . . . Cargo Convoy Interrupts . | . . . . . . . . . . . . . . . . . . . . . . . . Stealth | -11 -10 -10 -8 -8 -8 -6 -6 -5 -5 -5 -5 -5 -5 -4 -4 -4 -4 -3 -3 -3 -2 -1 -1 --------- Run | Yrd Mat Sub Mat Sto Rec Fac DSF Fac Was Fac Upp Upp Zhi Pro Fac Upp War Pro Res Tes Res Acc Com Distress Signals 23 | . . . 6 . 1 . . . . 2 . . . . . . 1 . 2 . 7 1 3 Communications Jammed . | . . . . . . . . . . . . . . . . . . . . . . . . Distress Signals . | . . . . . . . . . . . . . . . . . . . . . . . . Times Spotted 469 | . 8 1 29 2 16 . 21 22 6 61 11 24 . 14 10 3 30 7 47 23 74 29 31 Peak Tracking Total 17 | . 3 1 6 1 5 . 8 5 6 7 5 8 . 4 5 2 11 4 9 4 17 6 10 Tactical Retreats 21 | . . . . . . . 6 2 . 1 1 1 . . . . . . 2 1 3 2 2 Traps | -11 -10 -10 -8 -8 -8 -6 -6 -5 -5 -5 -5 -5 -5 -4 -4 -4 -4 -3 -3 -3 -2 -1 -1 ------- Run | Yrd Mat Sub Mat Sto Rec Fac DSF Fac Was Fac Upp Upp Zhi Pro Fac Upp War Pro Res Tes Res Acc Com Traps Triggered 5 | . 2 . . . . . . 1 . 2 . . . . . . . . . . . . . Indirectly . | . . . . . . . . . . . . . . . . . . . . . . . . Trap Hack Attempts . | . . . . . . . . . . . . . . . . . . . . . . . . Triggered . | . . . . . . . . . . . . . . . . . . . . . . . . Disarmed . | . . . . . . . . . . . . . . . . . . . . . . . . Reprogrammed . | . . . . . . . . . . . . . . . . . . . . . . . . Reused 1 | . . . . . . . . . . . . 1 . . . . . . . . . . . Traps Extracted . | . . . . . . . . . . . . . . . . . . . . . . . . Installed 5 | . . . . . . . . . . . . 5 . . . . . . . . . . . Triggered 1 | . . . . . . . . . . . . 1 . . . . . . . . . . . Machines | -11 -10 -10 -8 -8 -8 -6 -6 -5 -5 -5 -5 -5 -5 -4 -4 -4 -4 -3 -3 -3 -2 -1 -1 ---------- Run | Yrd Mat Sub Mat Sto Rec Fac DSF Fac Was Fac Upp Upp Zhi Pro Fac Upp War Pro Res Tes Res Acc Com Machines Disabled 33 | . . . 3 1 1 . 1 4 . 7 . 1 . . 1 . 1 . 1 5 6 1 . Max in Single Turn 2 | . . . 2 1 1 . . 1 . 2 . 1 . . 1 . 1 . 1 1 2 1 . Garrison Access 6 | . . . 1 . . . . 1 . 1 . . . . 1 . . . . 1 1 . . Machines Repaired . | . . . . . . . . . . . . . . . . . . . . . . . . Machines Dismantled 3 | . . . . . . . . . . . . . . . . . 1 . . . 1 1 . Machines Sabotaged . | . . . . . . . . . . . . . . . . . . . . . . . . Overloaded Fab Kills . | . . . . . . . . . . . . . . . . . . . . . . . . Hacking | -11 -10 -10 -8 -8 -8 -6 -6 -5 -5 -5 -5 -5 -5 -4 -4 -4 -4 -3 -3 -3 -2 -1 -1 --------- Run | Yrd Mat Sub Mat Sto Rec Fac DSF Fac Was Fac Upp Upp Zhi Pro Fac Upp War Pro Res Tes Res Acc Com Machines Accessed 40 | . 4 1 3 3 5 1 . 4 . 2 . 1 . 1 2 . 1 . 2 3 1 4 2 Terminals 25 | . 4 . 2 3 4 1 . 1 . 1 . . . 1 1 . . . . 2 . 3 2 Fabricators 3 | . . . . . . . . 2 . . . . . . . . . . 1 . . . . Repair Stations . | . . . . . . . . . . . . . . . . . . . . . . . . Recycling Units . | . . . . . . . . . . . . . . . . . . . . . . . . Scanalyzers . | . . . . . . . . . . . . . . . . . . . . . . . . Garrison Access 8 | . . . 1 . . . . 1 . 1 . . . . 1 . . . 1 1 1 1 . Total Hacks 99 | . 6 5 6 11 18 2 . 8 . 4 . 1 . 1 6 . 1 . 9 5 1 12 3 Successful 46 | . 3 5 3 3 12 1 . 5 . 2 . 1 . 1 1 . 1 . . 4 . 2 2 Failed 53 | . 3 . 3 8 6 1 . 3 . 2 . . . . 5 . . . 9 1 1 10 1 Catastrophic 12 | . 1 . . 1 1 . . 1 . 1 . . . . 2 . . . 2 . 1 2 . Database Lockouts . | . . . . . . . . . . . . . . . . . . . . . . . . Manual 64 | . 6 . 4 12 15 . . 4 . 4 . . . . 2 . . . 9 4 1 1 2 Terminals 63 | . 6 . 4 11 16 2 . 2 . 2 . . . 1 1 . . . . 4 . 11 3 Fabricators 9 | . . . . . . . . 5 . . . . . . . . . . 4 . . . . Repair Stations . | . . . . . . . . . . . . . . . . . . . . . . . . Recycling Units . | . . . . . . . . . . . . . . . . . . . . . . . . Scanalyzers . | . . . . . . . . . . . . . . . . . . . . . . . . Garrison Access 18 | . . . 2 . . . . 1 . 2 . . . . 5 . . . 5 1 1 1 . Terminal Hacks 24 | . 1 5 1 1 8 1 . . . . . 1 . 1 . . 1 . . 1 . 2 1 Record 6 | . . 5 . . . . . . . . . . . 1 . . . . . . . . . Part Schematic 1 | . . . . . 1 . . . . . . . . . . . . . . . . . . Robot Analysis 4 | . . . . . 4 . . . . . . . . . . . . . . . . . . Open Door 4 | . . . . . . . . . . . . 1 . . . . 1 . . . . 2 . Open DSF 1 | . . . . . . 1 . . . . . . . . . . . . . . . . . Branch Access Points 2 | . . . 1 1 . . . . . . . . . . . . . . . . . . . Terminal Index 1 | . . . . . 1 . . . . . . . . . . . . . . . . . . Zone Layout 2 | . 1 . . . . . . . . . . . . . . . . . . 1 . . . Disengage Seal 1 | . . . . . . . . . . . . . . . . . . . . . . . 1 Release Object 2 | . . . . . 2 . . . . . . . . . . . . . . . . . . Fabricator Hacks 3 | . . . . . . . . 3 . . . . . . . . . . . . . . . Network Status 1 | . . . . . . . . 1 . . . . . . . . . . . . . . . Load Schematic 1 | . . . . . . . . 1 . . . . . . . . . . . . . . . Build 1 | . . . . . . . . 1 . . . . . . . . . . . . . . . Repair Station Hacks . | . . . . . . . . . . . . . . . . . . . . . . . . Recycling Unit Hacks . | . . . . . . . . . . . . . . . . . . . . . . . . Scanalyzer . | . . . . . . . . . . . . . . . . . . . . . . . . Garrison Access Hacks . | . . . . . . . . . . . . . . . . . . . . . . . . Unauthorized Hacks 19 | . 2 . 2 2 4 . . 2 . 2 . . . . 1 . . . . 3 . . 1 Terminals 13 | . 2 . 1 2 4 . . . . 1 . . . . . . . . . 2 . . 1 Botnet 13 | . 2 . 1 2 4 . . . . 1 . . . . . . . . . 2 . . 1 Fabricators 1 | . . . . . . . . 1 . . . . . . . . . . . . . . . Fabnet 1 | . . . . . . . . 1 . . . . . . . . . . . . . . . Repair Stations . | . . . . . . . . . . . . . . . . . . . . . . . . Recycling Units . | . . . . . . . . . . . . . . . . . . . . . . . . Scanalyzers . | . . . . . . . . . . . . . . . . . . . . . . . . Garrison Access 5 | . . . 1 . . . . 1 . 1 . . . . 1 . . . . 1 . . . Jam 5 | . . . 1 . . . . 1 . 1 . . . . 1 . . . . 1 . . . Data Cores Recovered 1 | . . . . . . . . . . . . . . . . . . . . 1 . . . Used . | . . . . . . . . . . . . . . . . . . . . . . . . Hacking Detections 23 | . 3 . 1 2 4 1 . 2 . 1 . . . . 2 . . . 2 1 1 2 1 Full Trace Events 4 | . . . . . 3 . . 1 . . . . . . . . . . . . . . . Feedback Events . | . . . . . . . . . . . . . . . . . . . . . . . . Feedback Blocked . | . . . . . . . . . . . . . . . . . . . . . . . . Robot Schematics Acquired . | . . . . . . . . . . . . . . . . . . . . . . . . Robots Built . | . . . . . . . . . . . . . . . . . . . . . . . . Authchips . | . . . . . . . . . . . . . . . . . . . . . . . . Time . | . . . . . . . . . . . . . . . . . . . . . . . . Total Robot Build Rating . | . . . . . . . . . . . . . . . . . . . . . . . . Part Schematics Acquired 1 | . . . . . 1 . . . . . . . . . . . . . . . . . . Parts Built 2 | . . . . . . . . 2 . . . . . . . . . . . . . . . Authchips . | . . . . . . . . . . . . . . . . . . . . . . . . Time 62 | . . . . . . . . 62 . . . . . . . . . . . . . . . Total Part Build Rating 4 | . . . . . . . . 4 . . . . . . . . . . . . . . . Part Studies Acquired . | . . . . . . . . . . . . . . . . . . . . . . . . Parts Repaired . | . . . . . . . . . . . . . . . . . . . . . . . . Time . | . . . . . . . . . . . . . . . . . . . . . . . . Parts Recycled . | . . . . . . . . . . . . . . . . . . . . . . . . Recycled Matter . | . . . . . . . . . . . . . . . . . . . . . . . . Retrieved Matter . | . . . . . . . . . . . . . . . . . . . . . . . . Retrieved Components . | . . . . . . . . . . . . . . . . . . . . . . . . Parts Scanalyzed . | . . . . . . . . . . . . . . . . . . . . . . . . Part Schematics Acquired . | . . . . . . . . . . . . . . . . . . . . . . . . Parts Damaged . | . . . . . . . . . . . . . . . . . . . . . . . . Bothacking | -11 -10 -10 -8 -8 -8 -6 -6 -5 -5 -5 -5 -5 -5 -4 -4 -4 -4 -3 -3 -3 -2 -1 -1 ------------ Run | Yrd Mat Sub Mat Sto Rec Fac DSF Fac Was Fac Upp Upp Zhi Pro Fac Upp War Pro Res Tes Res Acc Com Used RIF Installer . | . . . . . . . . . . . . . . . . . . . . . . . . Robots Hacked 2 | . . . . . . . . . . . . . . 1 . . 1 . . . . . . Non-combat . | . . . . . . . . . . . . . . . . . . . . . . . . Combat 2 | . . . . . . . . . . . . . . 1 . . 1 . . . . . . Robot Hacks Applied . | . . . . . . . . . . . . . . . . . . . . . . . . Relay Couplers Released 3 | . . . . . . . . . . . . . . . 1 . . . . . 2 . . Machine Destruction 3 | . . . . . . . . . . . . . . . 1 . . . . . 2 . . Fabnet Peak Effective % 3 | . . . . . . . . . . . . . . 3 3 3 3 1 1 1 . . . Autooverrided 2 | . . . . . . . . . . . . . . 1 . . 1 . . . . . . Robots Rewired 11 | . . . . . 8 . . . . . . 2 . . . . . . . 1 . . . Allies Hacked 1 | . . . . . . . . . . . . . . . . . . . . . . 1 . Hacks Repelled 2 | . . . . . . . . . . . . . . . . . 2 . . . . . . Allies | -11 -10 -10 -8 -8 -8 -6 -6 -5 -5 -5 -5 -5 -5 -4 -4 -4 -4 -3 -3 -3 -2 -1 -1 -------- Run | Yrd Mat Sub Mat Sto Rec Fac DSF Fac Was Fac Upp Upp Zhi Pro Fac Upp War Pro Res Tes Res Acc Com Total Allies 60 | . . . . . 8 . 1 4 25 . . 2 . 1 . 1 1 . . 3 . 11 3 Largest Group 22 | . . . . . 7 5 5 4 22 22 . 2 1 1 . 1 1 . . 1 . 3 3 Highest-Rated Group 795 | . . . . . 116 98 116 168 795 795 . 58 29 47 . 49 54 . . 99 . 444 360 Highest-Rated Ally 148 | . . . . . 27 27 116 116 50 50 . 29 29 47 . 49 54 . . 99 . 148 120 Initial Warlord ECA Mod 9 | . . . . . . . . 9 9 9 9 9 9 8 8 8 8 7 7 7 6 5 5 Total Orders 1 | . . . . . . . . . . . . . . . . . . . . 1 . . . FOLLOW 1 | . . . . . . . . . . . . . . . . . . . . 1 . . . Ally Attacks 476 | . . . . . 34 . 3 15 16 179 . 25 . 2 . 4 2 . . 17 . 137 42 Total Damage 11148 | . . . . . 435 . 166 388 294 3526 . 320 . 38 . 14 50 . . 424 . 3749 1744 Kills 79 | . . . . . 3 . 3 3 3 24 . 5 . 1 . . . . . 2 . 23 12 Allies Corrupted 1 | . . . . . . . . . . . . . . . . . . . . . . . 1 Allies Melted 1 | . . . . . . . . . . . . . . . . . . . . . . 1 . X0-1V1 Amusement Gains 350 | . 21 . 5 . 10 10 15 20 . 10 . 20 . . 10 . 20 10 25 40 54 34 46 Average Entertainment 34 | . 21 9 7 4 5 10 21 25 45 45 20 33 . 11 14 11 15 34 44 42 77 87 58 Good Acts 111 | . . 2 2 . 18 . 3 3 9 16 6 2 . 5 . 3 10 4 4 7 3 6 8 Bad Acts 82 | . . 1 3 . 16 . 1 9 1 6 1 5 . 4 1 . 9 1 7 6 6 4 1 Intel | -11 -10 -10 -8 -8 -8 -6 -6 -5 -5 -5 -5 -5 -5 -4 -4 -4 -4 -3 -3 -3 -2 -1 -1 ------- Run | Yrd Mat Sub Mat Sto Rec Fac DSF Fac Was Fac Upp Upp Zhi Pro Fac Upp War Pro Res Tes Res Acc Com Active Infowar (turns) 2652 | 24 311 . . . . 126 319 635 210 . . . . . . 507 311 . . . . . 209 Sensors 342 | . . . . . . . . 133 . . . . . . . . . . . . . . 209 Seismic 335 | 24 311 . . . . . . . . . . . . . . . . . . . . . . Machine Analysis 1290 | . . . . . . 126 319 635 210 . . . . . . . . . . . . . . Jamming 818 | . . . . . . . . . . . . . . . . 507 311 . . . . . . Robot Analysis Total 4 | . . . . . 4 . . . . . . . . . . . . . . . . . . Derelict Logs Recovered 4 | . . 1 . . . . . . . . 2 1 . . . . . . . . . . . Drone Launches . | . . . . . . . . . . . . . . . . . . . . . . . . Drone Recoveries . | . . . . . . . . . . . . . . . . . . . . . . . . Exploration | -11 -10 -10 -8 -8 -8 -6 -6 -5 -5 -5 -5 -5 -5 -4 -4 -4 -4 -3 -3 -3 -2 -1 -1 ------------- Run | Yrd Mat Sub Mat Sto Rec Fac DSF Fac Was Fac Upp Upp Zhi Pro Fac Upp War Pro Res Tes Res Acc Com Turns Passed 16921 | 103 582 657 648 134 1326 127 319 635 326 1294 1199 1179 257 586 351 851 1753 603 494 941 1220 782 554 Spaces Moved 9333 | 53 278 408 229 77 701 48 162 371 292 1145 675 382 128 309 176 347 888 453 328 483 763 320 317 Core 2 | 2 . . . . . . . . . . . . . . . . . . . . . . . Treads 4341 | 51 278 408 229 77 701 48 24 . 55 146 382 382 128 9 . . 367 22 . 145 332 251 306 Legs 2684 | . . . . . . . 138 268 101 311 75 . . 41 3 109 379 324 221 301 412 . 1 Wheels 692 | . . . . . . . . . . 321 . . . . . 154 142 . . . . 65 10 Hover 305 | . . . . . . . . . . 92 159 . . . . . . . 50 . . 4 . Flight 1309 | . . . . . . . . 103 136 275 59 . . 259 173 84 . 107 57 37 19 . . Fastest Speed 49 | 50 160 160 145 153 153 237 93 93 72 68 49 157 193 149 149 171 124 87 87 76 93 145 108 Average Speed 147 | 155 160 160 152 153 157 237 111 118 88 84 162 275 193 160 156 234 185 108 92 135 121 183 141 Slowest Speed 303 | 160 160 160 160 153 161 237 225 249 118 237 267 303 193 193 171 259 259 149 170 240 201 266 149 Overloaded Moves . | . . . . . . . . . . . . . . . . . . . . . . . . Propulsion Burnouts . | . . . . . . . . . . . . . . . . . . . . . . . . Robots Hopped 3 | . . . . . . . . . . 2 . . . . 1 . . . . . . . . Potential Cave-ins 3 | . . . . . . . . . . . . . . . . . . . . . . 3 . Cave-ins Triggered . | . . . . . . . . . . . . . . . . . . . . . . . . Exploration Rate (%) 40 | 5 45 24 27 26 97 2 77 13 82 31 66 53 55 57 5 50 90 67 11 47 23 8 11 Regions Visited 23 Branch Regions 12 Pre-discovered Areas 2 | . . . . . . . . . . . 2 . . . . . . . . . . . . Known Exits Taken 8 | . . . 1 1 . 1 . . . . . . . 1 . . 1 1 . 1 . 1 . Unknown Exits Taken 12 | 1 1 1 . . 1 . . . . 1 1 1 1 . 1 1 . . 1 . 1 . . Scrap Searched 5 | . . . . . . . . . . . 3 1 . . . . . 1 . . . . . Spaces Dug 22 | . . . . . 1 2 . 1 . 1 . 6 . . 2 . . . 1 . . 7 1 Terrain Destroyed 471 | . . . . 19 1 2 5 11 7 38 41 46 . 16 12 5 4 43 43 71 43 31 33 Melee 3 | . . . . . 1 2 . . . . . . . . . . . . . . . . . Projectile 231 | . . . . . . . 5 11 3 13 2 12 . 16 12 5 4 4 36 1 43 31 33 AOE 230 | . . . . 19 . . . . 4 25 39 34 . . . . . 39 7 63 . . . Terrain Rammed . | . . . . . . . . . . . . . . . . . . . . . . . . Walls Destroyed . | . . . . . . . . . . . . . . . . . . . . . . . . Machines Disabled . | . . . . . . . . . . . . . . . . . . . . . . . . Actions | -11 -10 -10 -8 -8 -8 -6 -6 -5 -5 -5 -5 -5 -5 -4 -4 -4 -4 -3 -3 -3 -2 -1 -1 --------- Run | Yrd Mat Sub Mat Sto Rec Fac DSF Fac Was Fac Upp Upp Zhi Pro Fac Upp War Pro Res Tes Res Acc Com Total 11136 | 66 353 411 374 85 870 58 229 475 328 1338 749 464 138 342 210 370 956 520 412 670 900 444 374 Wait 597 | . 31 . 32 1 22 3 9 32 17 99 34 10 2 4 9 14 7 41 20 83 49 65 13 Move 9306 | 53 277 407 228 76 700 47 161 371 291 1140 674 381 127 308 173 346 887 452 328 482 762 319 316 Hop 3 | . . . . . . . . . . 2 . . . . 1 . . . . . . . . Pick Up 96 | 4 6 3 7 1 10 2 3 8 1 9 4 . 1 1 . 2 8 . 2 14 2 3 5 Fast Attach 109 | 7 1 . 8 1 6 . 12 4 1 4 6 3 4 . . . 11 4 5 16 9 7 . Attach 50 | . . . 7 1 6 2 6 4 . 1 4 . . . 5 . 1 1 5 2 4 . 1 Detach 20 | . . . . . 3 . . . 1 . 4 . . . 1 . 3 1 1 3 1 1 1 Swap 44 | . 3 . 5 . 5 2 . . . 4 2 5 . 1 . . 3 . 1 2 . 3 8 Drop 112 | . 1 . 10 1 14 . 3 10 4 9 5 2 4 1 1 . 13 3 4 14 4 3 6 Fire 619 | 2 34 1 77 4 27 . 35 44 13 67 16 22 . 27 20 8 15 18 45 42 56 26 20 Melee 9 | . . . . . 2 2 . . . 3 . . . . . . . . . 2 . . . Ram . | . . . . . . . . . . . . . . . . . . . . . . . . Kick 5 | . . . . . . . . 1 . . . . . . . . . . 1 . 3 . . Crush 4 | . . . . . . . . . . . . . . . . . . . . . . . 4 Escape Stasis 2 | . . . . . . . . 1 . . . . . . . . . . . 1 . . . Rewire 119 | . . . . . 73 . . . . . . 36 . . . . . . . 9 . 1 . Trap 5 | . . . . . . . . . . . . 5 . . . . . . . . . . . Miscellaneous 36 | . . . . . 2 . . . . . . . . . . . 8 . . . 10 16 . Route ------- -11/Scrapyard -10/Materials (discovered 3 exits: [*Mat] / [*Min] / *Sub) -10/Subcaves -8/Materials (discovered 3 exits: [*Fac] / *Sto x2) -8/Storage -8/Recycling -6/Factory -6/DSF -5/Factory -5/Waste -5/Factory (discovered 2 exits: Fac / [*Upp]) -5/Upper Caves -5/Upper Caves -5/Zhirov -4/Proximity Caves -4/Factory (discovered 2 exits: *Res / [*Upp]) -4/Upper Caves -4/Warlord -3/Proximity Caves -3/Research -3/Testing -2/Research -1/Access (discovered 2 exits: Sur / *Com) -1/Command To Epsilon Eridani History --------- Turn | Location | Event 17 | -11/Scrapyard | Discovered new exit (range 16) 104 | -11/Scrapyard | Entered Materials 317 | -10/Materials | Build established: Mutant 502 | -10/Materials | Discovered new exit (range 7) 657 | -10/Materials | Discovered new exit (range 15) 674 | -10/Materials | Discovered new exit (range 6) 682 | -10/Materials | Prayed at D.C.S.S. Altar Unit 686 | -10/Materials | Entered Subcaves 687 | -10/Subcaves | Approached by a straggling Scientist 755 | -10/Subcaves | Shifting Twisted Machinery released Mak. System Restoration Module 866 | -10/Subcaves | Discovered new exit (range 10) 913 | -10/Subcaves | Shifting Twisted Machinery released Mak. Sword 916 | -10/Subcaves | Shifting Twisted Machinery released Sub. Laser 931 | -10/Subcaves | Shifting Twisted Machinery released Sub. Beam Cannon 983 | -10/Subcaves | Visited Clippyterm 988 | -10/Subcaves | Learned Factory fabricator intel 988 | -10/Subcaves | Learned Factory garrison access intel 1151 | -10/Subcaves | Learned Materials garrison access intel 1161 | -10/Subcaves | Energy generation permanently improved by X0-1V1 (+10; -100 max core) 1170 | -10/Subcaves | A swath of the cavern ceiling suddenly collapsed 1343 | -10/Subcaves | Entered Materials 1343 | -8/Materials | Evolved 4 slots: Propulsion x1, Utility x2, Weapon x1 1344 | -8/Materials | Loaded intel: 1 garrison access location 1511 | -8/Materials | Lost 3 parts (1p1u1w) 1579 | -8/Materials | Identified exit to Storage 1745 | -8/Materials | Garrison activated, responded to threat 1946 | -8/Materials | Discovered new exit (range 16) 1991 | -8/Materials | Entered Storage 2086 | -8/Storage | Build established: Tank 2086 | -8/Storage | Identified exit to Recycling 2121 | -8/Storage | Used back door to open Recycling access 2125 | -8/Storage | Entered Recycling 2341 | -8/Recycling | X0-1V1 sent you into danger 2421 | -8/Recycling | Lost 7 parts (1p1n2u3w) 2512 | -8/Recycling | X0-1V1 vaporized surrounding terrain (radius 17) 2574 | -8/Recycling | X0-1V1 vaporized surrounding terrain (radius 17) 2605 | -8/Recycling | Core integrity restored by X0-1V1 (+72) 2635 | -8/Recycling | Ranged accuracy permanently improved by X0-1V1 (+5%; -50 max core) 2775 | -8/Recycling | Discovered new exit (range 6) 2857 | -8/Recycling | Build established: Commander-Tank 3042 | -8/Recycling | Entered Scraplab 3051 | -8/Recycling | Found Prototype Device 3051 | -8/Recycling | Identified Scrap Engine 3274 | -8/Recycling | X0-1V1 activates XOMVISION 3307 | -8/Recycling | X0-1V1 vaporized surrounding terrain (radius 16) 3366 | -8/Recycling | X0-1V1 sent hostile G-47 Trooper (x5) 3380 | -8/Recycling | X0-1V1 put everyone to sleep 3385 | -8/Recycling | X0-1V1 sent you into danger 3392 | -8/Recycling | X0-1V1 added 0b10 threat records associated with you (major) 3436 | -8/Recycling | Build established: Commander-Gunner 3436 | -8/Recycling | Core integrity restored by X0-1V1 (+88) 3451 | -8/Recycling | Entered Factory 3451 | -6/Factory | Accompanied by 5 allies 3451 | -6/Factory | Evolved 4 slots: Propulsion x1, Utility x2, Weapon x1 3452 | -6/Factory | Loaded intel: 6 fabricator locations 3453 | -6/Factory | Loaded intel: 4 garrison access locations 3571 | -6/Factory | Identified exit to DSF 3578 | -6/Factory | Entered DSF 3578 | -6/DSF | Accompanied by 5 allies 3602 | -6/DSF | Additional patrols routed to DSF 3658 | -6/DSF | Lost 5 allies 3723 | -6/DSF | System corruption reached 10% 3730 | -6/DSF | Lost 17 parts (2p5n2u8w) 3794 | -6/DSF | Discovered new exit (range 15) 3832 | -6/DSF | X0-1V1 sent allied B-86 Titan (x1) 3865 | -6/DSF | Sterilization system engaged 3885 | -6/DSF | Ambient heat levels rising (+10) 3897 | -6/DSF | Entered Factory 3897 | -5/Factory | Accompanied by 1 ally 3897 | -5/Factory | Evolved 2 slots: Utility x2 4008 | -5/Factory | Fabricated Plasma Cutter? 4014 | -5/Factory | X0-1V1 activates XOMVISION 4151 | -5/Factory | X0-1V1 sent you to a vault 4239 | -5/Factory | Lost 4 allies 4449 | -5/Factory | Lost 3 parts (3w) 4491 | -5/Factory | Build established: Construct 4497 | -5/Factory | First assault squad dispatched 4532 | -5/Factory | Sucked down chute 4532 | -5/Factory | Entered Waste 4551 | -5/Waste | Spotted C-40 Crusher 4557 | -5/Waste | Spotted C-40 Crusher 4591 | -5/Waste | Spotted C-40 Crusher 4594 | -5/Waste | Spotted C-40 Crusher 4595 | -5/Waste | Spotted C-40 Crusher 4595 | -5/Waste | Spotted C-40 Crusher 4634 | -5/Waste | X0-1V1 sent allied Fireman (x3) 4635 | -5/Waste | Destroyed C-40 Crusher 4640 | -5/Waste | Allies destroyed C-40 Crusher 4653 | -5/Waste | Allies destroyed C-40 Crusher 4661 | -5/Waste | Allies destroyed C-40 Crusher 4696 | -5/Waste | Destroyed C-40 Crusher 4706 | -5/Waste | X0-1V1 sent allied Thug (x3) 4706 | -5/Waste | Lost 3 allies 4707 | -5/Waste | Destroyed C-40 Crusher 4743 | -5/Waste | Found Damper Plating 4764 | -5/Waste | Warlord forces began an assault 4771 | -5/Waste | X0-1V1 caused items to flee you 4813 | -5/Waste | Discovered new exit (range 11) 4858 | -5/Waste | Entered Factory 4858 | -5/Factory | Accompanied by 22 allies 4891 | -5/Factory | Spotted B-75 Beast 4902 | -5/Factory | Allies destroyed B-75 Beast 4944 | -5/Factory | Melee accuracy permanently improved by X0-1V1 (+7%; -70 max core) 5096 | -5/Factory | Identified exit to Factory 5096 | -5/Factory | X0-1V1 revealed exit location to -4/Factory 5138 | -5/Factory | Lost 3 allies 5217 | -5/Factory | Lost 5 allies 5405 | -5/Factory | X0-1V1 redirected Transport squads to designated parking area 5458 | -5/Factory | First assault squad dispatched 5745 | -5/Factory | Lost 4 allies 5755 | -5/Factory | X0-1V1 activates XOMVISION 5903 | -5/Factory | Destroyed 7 combat bots 5957 | -5/Factory | X0-1V1 whisked you away to safety 6127 | -5/Factory | Garrison activated, responded to threat 6137 | -5/Factory | Discovered new exit (range 9) 6152 | -5/Factory | Entered Upper Caves 6172 | -5/Upper Caves | Met a Warlord Commander 6173 | -5/Upper Caves | Learned location of Warlord (-4) 6174 | -5/Upper Caves | Warlord Commander delivered Encrypted Comm Array 6180 | -5/Upper Caves | Found Encrypted Comm Array 6222 | -5/Upper Caves | Learned Factory machine intel 6230 | -5/Upper Caves | X0-1V1 activates XOMVISION 6795 | -5/Upper Caves | X0-1V1 activates XOMVISION 7177 | -5/Upper Caves | Spotted B-75 Beast 7198 | -5/Upper Caves | Destroyed B-75 Beast 7305 | -5/Upper Caves | Discovered new exit (range 8) 7351 | -5/Upper Caves | Entered another Upper Caves area 7519 | -5/Upper Caves | Attracted the attention of an 0b10 outpost 7646 | -5/Upper Caves | System corruption reached 10% 7648 | -5/Upper Caves | Destroyed 7 combat bots 7986 | -5/Upper Caves | Build established: Scavenger-Construct 8138 | -5/Upper Caves | Spotted B-75 Beast 8151 | -5/Upper Caves | Allies destroyed B-75 Beast 8321 | -5/Upper Caves | Learned Factory security intel 8471 | -5/Upper Caves | X0-1V1 rewrote Soldier 6b IFF filter 8524 | -5/Upper Caves | Discovered new exit (range 5) 8530 | -5/Upper Caves | Entered Zhirov 8530 | -5/Zhirov | Accompanied by 1 ally 8530 | -5/Zhirov | Discovered new exit (range 3) 8573 | -5/Zhirov | Met Zhirov 8613 | -5/Zhirov | Zhirov requested help retrieving the SGEMP Prototype 8647 | -5/Zhirov | Found Alien Artifact 8647 | -5/Zhirov | Identified Integrated Reactor 8647 | -5/Zhirov | Installed Integrated Reactor, increased core energy generation (+10) 8787 | -5/Zhirov | Entered Proximity Caves 8787 | -4/Proximity Caves | Accompanied by 1 ally 8968 | -4/Proximity Caves | Attracted the attention of an 0b10 checkpoint 8987 | -4/Proximity Caves | Build established: Construct 9172 | -4/Proximity Caves | Spotted B-86 Titan 9182 | -4/Proximity Caves | X0-1V1 caused items to flee you 9214 | -4/Proximity Caves | Destroyed B-86 Titan 9223 | -4/Proximity Caves | X0-1V1 sent hostile G-67 Veteran (x4) 9366 | -4/Proximity Caves | Discovered exit to Factory (range 5) 9373 | -4/Proximity Caves | Entered Factory 9373 | -4/Factory | Evolved 2 slots: Utility x2 9375 | -4/Factory | Loaded intel: 315 machine locations 9464 | -4/Factory | Garrison activated, responded to threat 9511 | -4/Factory | Discovered new exit (range 16) 9642 | -4/Factory | Discovered new exit (range 8) 9673 | -4/Factory | Build established: Hacker-Construct 9724 | -4/Factory | Entered Upper Caves 10041 | -4/Upper Caves | X0-1V1 turns hostiles against one another 10282 | -4/Upper Caves | X0-1V1 activates XOMVISION 10560 | -4/Upper Caves | A Derelict revealed a hidden shortcut to "reach the base" 10575 | -4/Upper Caves | Entered Warlord 11713 | -4/Warlord | Found Prototype Device 11713 | -4/Warlord | Identified Thermal Barrier 11734 | -4/Warlord | Found Prototype Hackware 11734 | -4/Warlord | Identified Ghost Barrier 11797 | -4/Warlord | Visited the Vortex Lab 11800 | -4/Warlord | Warlord's base attacked by MAIN.C 11808 | -4/Warlord | Found Prototype Energy Gun 11808 | -4/Warlord | Identified Vortex Shotgun 11938 | -4/Warlord | Met Warlord 12114 | -4/Warlord | Identified exit to Proximity Caves 12114 | -4/Warlord | X0-1V1 revealed exit location to -3/Proximity Caves 12147 | -4/Warlord | X0-1V1 sent hostile C-35 Carver (x1) 12150 | -4/Warlord | Warlord forces counterattacked 12153 | -4/Warlord | X0-1V1 activates XOMVISION 12157 | -4/Warlord | Spotted B-90 Cyclops 12161 | -4/Warlord | Spotted B-86 Titan 12171 | -4/Warlord | Destroyed B-90 Cyclops 12189 | -4/Warlord | Destroyed B-86 Titan 12212 | -4/Warlord | Destroyed 7 combat bots 12222 | -4/Warlord | Lost 5 parts (2n2u1w) 12253 | -4/Warlord | Spotted Striker 12281 | -4/Warlord | Destroyed Striker 12294 | -4/Warlord | Spotted Executioner 12328 | -4/Warlord | Entered Proximity Caves 12356 | -3/Proximity Caves | Lost 17 allies 12409 | -3/Proximity Caves | Identified exit to Research 12409 | -3/Proximity Caves | X0-1V1 revealed exit location to -3/Research 12550 | -3/Proximity Caves | Build established: Hacker-Tank 12687 | -3/Proximity Caves | Lost 3 parts (1u2w) 12695 | -3/Proximity Caves | Attracted the attention of an 0b10 checkpoint 12835 | -3/Proximity Caves | Spotted B-86 Titan 12931 | -3/Proximity Caves | Entered Research 12931 | -3/Research | Evolved 2 slots: Utility x1, Weapon x1 13180 | -3/Research | X0-1V1 enhanced Transport squad support 13235 | -3/Research | Destroyed 7 combat bots 13265 | -3/Research | X0-1V1 vaporized surrounding terrain (radius 17) 13309 | -3/Research | Build established: Hacker-Construct 13341 | -3/Research | X0-1V1 downgraded hostiles (x3) 13349 | -3/Research | Destroyed 8 combat bots 13374 | -3/Research | System corruption reached 10% 13382 | -3/Research | Lost 7 parts (1n1u5w) 13412 | -3/Research | Discovered new exit (range 8) 13425 | -3/Research | Entered Testing 13592 | -3/Testing | X0-1V1 mutated your Utility slot to Propulsion slot 13640 | -3/Testing | X0-1V1 vaporized surrounding terrain (radius 18) 13677 | -3/Testing | Build established: Hacker-Tank 13765 | -3/Testing | Found Prototype Ballistic Cannon 13765 | -3/Testing | Identified Perforator 13932 | -3/Testing | Spotted Striker 13933 | -3/Testing | Spotted Striker 14020 | -3/Testing | Destroyed Striker 14024 | -3/Testing | Destroyed Striker 14026 | -3/Testing | Spotted Alpha 7 14074 | -3/Testing | Found Prototype Hackware 14103 | -3/Testing | Identified exit to Research 14103 | -3/Testing | X0-1V1 revealed exit location to -2/Research 14115 | -3/Testing | Stole the SGEMP Prototype 14119 | -3/Testing | X0-1V1 turns hostiles against one another 14153 | -3/Testing | X0-1V1 sent allied Striker (x1) 14366 | -3/Testing | Entered Research 14366 | -2/Research | Warlord forces began assault on 0b10 14366 | -2/Research | Evolved 2 slots: Utility x2 14391 | -2/Research | Distinguished unit "Viscera Detail" dispatched to help 14453 | -2/Research | Lost 5 allies 14476 | -2/Research | Research machine network offline 14517 | -2/Research | Spotted B-90 Cyclops 14524 | -2/Research | Met up with Warlord 14531 | -2/Research | System corruption reached 10% 14591 | -2/Research | X0-1V1 sent hostile P-80 Master (x2) 14602 | -2/Research | P-80 Master assimilated allied 03-09U(S) 14620 | -2/Research | Spotted Striker 14739 | -2/Research | X0-1V1 sent hostile S-43 Plague (x4) 14785 | -2/Research | Spotted Striker 14812 | -2/Research | Discovered new exit (range 11) 14818 | -2/Research | Lost 3 allies 14963 | -2/Research | Borebot progress halted 14982 | -2/Research | Spotted Striker 14984 | -2/Research | Spotted Striker 14999 | -2/Research | Destroyed Striker 15017 | -2/Research | Borebot progress halted 15030 | -2/Research | Lost 3 allies 15087 | -2/Research | Borebot progress halted 15138 | -2/Research | Spotted Striker 15151 | -2/Research | Warlord destroyed during the assault 15189 | -2/Research | Spotted Striker 15189 | -2/Research | Spotted Executioner 15190 | -2/Research | Spotted Executioner 15201 | -2/Research | Spotted Striker 15205 | -2/Research | X0-1V1 downgraded hostiles (x1) 15205 | -2/Research | Destroyed Striker 15216 | -2/Research | Destroyed Striker 15239 | -2/Research | Lost 6 allies 15337 | -2/Research | Core integrity restored by X0-1V1 (+270) 15342 | -2/Research | Build established: Scavenger-Tank 15544 | -2/Research | Spotted Executioner 15547 | -2/Research | Destroyed Executioner 15575 | -2/Research | Spotted Striker 15586 | -2/Research | Entered Access 15586 | -1/Access | Evolved 2 slots: Utility x1, Weapon x1 15587 | -1/Access | Delivered the SGEMP Prototype to Zhirov 15587 | -1/Access | Zhirov transferred Access data 15588 | -1/Access | Loaded intel: 134 machine locations 15588 | -1/Access | Loaded intel: 82 trap records 15588 | -1/Access | Identified exit to Surface 15588 | -1/Access | Discovered exit to Surface (range 208) 15588 | -1/Access | Identified exit to Command 15588 | -1/Access | Discovered exit to Command (range 148) 15588 | -1/Access | X0-1V1 activates XOMVISION 15680 | -1/Access | Zhirov warped through subspace 15747 | -1/Access | Lost 4 allies 15799 | -1/Access | X0-1V1 sent allied B-90 Cyclops (x3) 15819 | -1/Access | Allies destroyed B-90 Cyclops 15892 | -1/Access | Build established: Scavenger-Executioner 16011 | -1/Access | X0-1V1 enhanced Transport squad support 16086 | -1/Access | First assault squad dispatched 16111 | -1/Access | X0-1V1 sent allied P-80 Master (x2) 16190 | -1/Access | X0-1V1 caused items to flee you 16207 | -1/Access | X0-1V1 sent allied B-90 Cyclops (x3) 16325 | -1/Access | System corruption reached 10% 16368 | -1/Access | Entered Command 16620 | -1/Command | X0-1V1 sent allied Immortal (x3) 16864 | -1/Command | Identified Exp. System Shield 16868 | -1/Command | First assault squad dispatched 16878 | -1/Command | Disengaged cave seal 16878 | -1/Command | Wild derelicts emerged from the dark tunnel 16915 | -1/Command | Spotted B-99 Colossus 16915 | -1/Command | Spotted Alpha 7 16915 | -1/Command | Spotted Striker 16915 | -1/Command | Spotted Executioner 16915 | -1/Command | Spotted Executioner 16915 | -1/Command | Spotted Striker 16915 | -1/Command | Spotted Executioner 16915 | -1/Command | Spotted Executioner 16915 | -1/Command | Spotted B-99 Colossus 16915 | -1/Command | X0-1V1 sent you into danger 16915 | -1/Command | Discovered exit to Surface (range 5) 16922 | *** | Escaped! Last Messages --------------- Move Heat +2, Energy +1 Renamed Myomer-Compact Exoskeleton. 16921_ Field strength at 5. 16921_ Penetrated by Slug. 16921_ Slug penetrates Wall. 16921_ Penetrated by Slug. 16921_ Knocked back. 16922_ Slug penetrates Access Shell. 16922_ Penetrated by Slug. 16922_ Hvy. Ballistic Hardcell Construct/C destroyed. 16922_ Arm. Scrap Engine damaged due to network destabilization (-7). 16922_ Exp. System Shield destroyed. 16922_ Slug penetrates Wall. 16922_ Penetrated by Slug. 16922_ Slug penetrates Wall. 16922_ Penetrated by Slug. [Achievement: Force of Scrap] [Achievement: True Cogmind] Map ----- +----------------------------------------------------+ | ?????????????????????????????????????????????##" | | ???????????????????????? % "##################"" | | ??????????????????????? % !=! | | ??????????????????????? = #####" | | ??????????????????????? *![ !% !!=##??#" | | ??????????????????????? !%![ = !"#??## | | ??????????????????????? "###########+#+###### | | ?????????????????????????????????# ## | | ?????????????????????##++++#?????# ## | | ?????????????????????# ?????# ## | | ????????????????????## ^?????# " ## | | ????????????????????? ^ k ????# ## | | ????????????????????## #????# ## | | ????????????????????? ????# ## | | ????????????????????## 7 ^#????# #" | | ????????????????????#w ????# ## | | ????????????????????##E ##???# #"=% | | ????????????????????# % #???# "=%= | | ??????????????????#### E ;###?# % %!!!! | | ??????????????????# BB EK BB#?##############!%= | | ??????????????????# B E BB#?????????????? !%! | | ??????????????????# K #??????????????==*% | | ??????????????????# " % #?????????????? #%% | | ??????????????????????" % #????????????? #= | | ??????????????????????" %" % #????????????? + | | ??????????????????????" "@ #????????????? ? | | ??????????????????????" % #????????????? ? | | ??????????????????????" "" #????????????? ?? | | ????????????????????? #???????????????? | | ??????????????????? #???????????????? | | ??????????????????# #???????????????? | | ??????????????????##############???????????????? | | ?????????????????????????????????????????????????? | | ?????????????????????????????????????????????????? | | ?????????????????????????????????????????????????? | | ?????????????????????????????????????????????????? | | ?????????????????????????????????????????????????? | | ?????????????????????????????????????????????????? | | ?????????????????????????????????????????????????? | | ?????????????????????????????????????????????????? | | ?????????????????????????????????????????????????? | | ?????????????????????????????????????????????????? | | ?????????????????????????????????????????????????? | | ?????????????????????????????????????????????????? | | ?????????????????????????????????????????????????? | | ?????????????????????????????????????????????????? | | ?????????????????????????????????????????????????? | | ?????????????????????????????????????????????????? | | ?????????????????????????????????????????????????? | | ?????????????????????????????????????????????????? | +----------------------------------------------------+ Best States ------------- Heat Dissipation 109 Coolant Potential 200 Energy Generation 67 Energy Capacity 2088 Matter Stores 900 Matter Capacity 1000 Sight Range 22 Robot Scan Range 16 Terrain Scan Density 10 Jamming Range 16 Armor Coverage 1600 Resistance: KI 42 Resistance: TH 46 Resistance: EM 90 Core Shielding 30 Power Shielding 90 Utility Shielding 15 Evasion (%) 70 Core Analysis 6 Recoil Reduction 5 Offensive Hacking 34 Defensive Hacking 36 Item Schematics ----------------- Plasma Cutter | -8/Recycling | Hacked Robot Schematics ------------------ None Fabricated ------------ Plasma Cutter | x2 | -5/Factory Repaired ---------- Nothing Studied --------- None Alien Tech Used ----------------- Integrated Reactor Achievements -------------- Force of Scrap Irresistible Scrap True Cogmind Challenges ------------ None Game ------ Seed ZhirovFocalMultirail Manual? 0 Play Time 03:46:29 Cumulative 381.3 hours Start 2026.09.03 @ 23:37:30 End 2026.09.05 @ 22:40:58 Sessions 11 Manual Loads 0 Difficulty Rogue Special Mode None Game No. 116 Rogue 78 Adventurer 38 Explorer 0 Win Type 0 Total 25 Types 13/2/4/1/1/1/1/1/0/1 Lore% 81 Gallery% 69 Achievement% 64 Wizard Run 0 Options --------- Layout 1 ASCII 0 Keyboard 0 Movement Numpad Keybinds 1 Fullscreen 1 Font 24/Smallcaps Map View 50x35 Zoom Use 0% Tactical HUD 1 Map Filters NONE Filters NONE Steam 1 RUN: c4874f30-77f7-40bc-943d-d58e2fa8facb